fUSD/lending_fUSD_20240319
["ID","MTS","AMOUNT","RATE_DAILY","PERIOD"]
[319608318,1710885218938,-23885.26,0.0003589,5]
[319608319,1710885218947,-2241.19,0.0003589,5]
[319608320,1710885218957,-34338.3,0.0003589,5]
[319608321,1710885218966,-6038.59,0.0003589,5]
[319608322,1710885218976,-870.15,0.0003589,5]
[319608323,1710885218985,-1003.35,0.0003589,5]
[319608324,1710885218994,-615.59,0.0003589,5]
[319608325,1710885219003,-5507.6,0.0003589,5]
[319608326,1710885219012,-5378.59,0.0003589,5]
[319608327,1710885219022,-453.8,0.0003589,5]
[319608328,1710885219031,-681.39,0.0003589,5]
[319608329,1710885219039,-3623.08,0.0003589,5]
[319608330,1710885219049,-659.74,0.0003589,5]
[319608331,1710885219058,-500.0,0.0003589,5]
[319608332,1710885219067,-1648.34,0.0003589,5]
[319608333,1710885219077,-7204.29,0.0003589,5]
[319608334,1710885219086,-976.18,0.0003589,5]
[319608335,1710885219095,-1912.73,0.0003589,5]
[319608336,1710885219104,-3082.4,0.0003589,5]
[319608337,1710885219114,-2522.27,0.0003589,5]
[319608338,1710885219122,-6424.1,0.0003589,5]
[319608339,1710885219132,-1570.96,0.0003589,5]
[319608340,1710885219141,-5688.06,0.0003589,5]
[319608341,1710885219151,-2703.38,0.0003589,5]
[319608342,1710885219160,-1409.47,0.0003589,5]
[319608343,1710885219169,-10351.23,0.0003589,5]
[319608344,1710885219179,-723.42,0.0003589,5]
[319608345,1710885219188,-19207.21,0.0003589,5]
[319608346,1710885219197,-3910.17,0.0003589,5]
[319608347,1710885219208,-151.77150179,0.0003589,5]
[319608348,1710885219218,-989.66,0.0003589,5]
[319608349,1710885219227,-3159.85,0.0003589,5]
[319608350,1710885219237,-1575.99,0.0003589,5]
[319608351,1710885219246,-2518.49,0.0003589,5]
[319608352,1710885219256,-602.98,0.0003589,5]
[319608353,1710885219265,-2902.62,0.0003589,5]
[319608354,1710885219275,-1081.46,0.0003589,5]
[319608355,1710885219285,-11316.17,0.0003589,5]
[319608356,1710885219294,-21059.27,0.0003589,5]
[319608357,1710885219304,-722.94,0.0003589,5]
[319608358,1710885219313,-996.99,0.0003589,5]
[319608359,1710885219323,-1144.28,0.0003589,5]
[319608360,1710885219332,-3248.34,0.0003589,5]
[319608361,1710885219342,-592.77,0.0003589,5]
[319608362,1710885219351,-500.0,0.0003589,5]
[319608363,1710885219361,-611.45,0.0003589,5]
[319608364,1710885219370,-1214.02,0.0003589,5]
[319608365,1710885219379,-5044.94,0.0003589,5]
[319608366,1710885219389,-856.7,0.0003589,5]
[319608367,1710885219399,-6225.21,0.0003589,5]
[319608368,1710885219408,-608.72,0.0003589,5]
[319608369,1710885219418,-1511.11,0.0003589,5]
[319608370,1710885219427,-1279.36,0.0003589,5]
[319608371,1710885219437,-8737.55,0.0003589,5]
[319608372,1710885219447,-11752.03,0.0003589,5]
[319608373,1710885219458,-4482.5,0.0003589,5]
[319608374,1710885219467,-1788.46,0.0003589,5]
[319608375,1710885219477,-5316.22,0.0003589,5]
[319608376,1710885219487,-1321.67,0.0003589,5]
[319608377,1710885219500,-1177.76,0.0003589,5]
[319608378,1710885219509,-518.08,0.0003589,5]
[319608379,1710885219519,-505.75,0.0003589,5]
[319608380,1710885219528,-2886.03,0.0003589,5]
[319608381,1710885219538,-1429.54,0.0003589,5]
[319608382,1710885219548,-20562.17,0.0003589,5]
[319608383,1710885219558,-22991.35,0.0003589,5]
[319608384,1710885219567,-3473.42,0.0003589,5]
[319608385,1710885219580,-4026.93,0.0003589,5]
[319608386,1710885219589,-805.12,0.0003589,5]
[319608387,1710885219599,-981.11,0.0003589,5]
[319608388,1710885219609,-877.4,0.0003589,5]
[319608389,1710885219618,-1121.88,0.0003589,5]
[319608390,1710885219627,-12965.17,0.0003589,5]
[319608391,1710885219637,-836.09,0.0003589,5]
[319608392,1710885219646,-8047.18,0.0003589,5]
[319608393,1710885219656,-4640.74,0.0003589,5]
[319608394,1710885219666,-6661.58,0.0003589,5]
[319608395,1710885219675,-720.32,0.0003589,5]
[319608396,1710885219685,-3306.12,0.0003589,5]
[319608397,1710885219694,-1406.25,0.0003589,5]
[319608398,1710885219704,-603.58,0.0003589,5]
[319608399,1710885219714,-1438.11,0.0003589,5]
[319608400,1710885219723,-6333.98,0.0003589,5]
[319608401,1710885219733,-2692.37,0.0003589,5]
[319608402,1710885219743,-614.48,0.0003589,5]
[319608403,1710885219753,-26854.72,0.0003589,5]
[319608404,1710885219763,-2847.31,0.0003589,5]
[319608405,1710885219773,-1953.31,0.0003589,5]
[319608406,1710885219783,-1298.71,0.0003589,5]
[319608407,1710885219793,-521.8,0.0003589,5]
[319608408,1710885219802,-972.96,0.0003589,5]
[319608409,1710885219812,-599.79,0.0003589,5]
[319608410,1710885219821,-1902.54,0.0003589,5]
[319608411,1710885219830,-673.97,0.0003589,5]
[319608412,1710885219840,-649.62,0.0003589,5]
[319608413,1710885219849,-26670.31,0.0003589,5]
[319608414,1710885219859,-5843.77,0.0003589,5]
[319608415,1710885219870,-691.9,0.0003589,5]
[319608416,1710885219879,-1828.95,0.0003589,5]
[319608417,1710885219889,-1109.32,0.0003589,5]
[319608418,1710885219899,-1199.84,0.0003589,5]
[319608419,1710885219908,-1000.0,0.000359,5]
[319608420,1710885219918,-548136.75105016,0.00036,2]
[319608421,1710885219928,-459.11953299,0.00036,2]
[319608422,1710885219937,-150.0,0.00036085,120]
[319608423,1710885219947,-1374.08349083,0.00036164,4]
[319608424,1710885219958,-500.0,0.00036164,5]
[319608425,1710885219968,-1041.1,0.00036164,5]
[319608426,1710885219978,-905.92,0.00036164,5]
[319608427,1710885219988,-760.8,0.00036164,5]
[319608428,1710885219998,-918.16,0.00036164,5]
[319608429,1710885220008,-1354.5,0.00036164,5]
[319608430,1710885220018,-563.69,0.00036164,5]
[319608431,1710885220028,-553.29,0.00036164,5]
[319608432,1710885220037,-576.34,0.00036164,5]
[319608433,1710885220047,-628.41,0.00036164,5]
[319608434,1710885220057,-620.13,0.00036164,5]
[319608435,1710885220067,-786.01,0.00036164,5]
[319608436,1710885220077,-865.28,0.00036164,5]
[319608437,1710885220087,-964.89,0.00036164,5]
[319608438,1710885220096,-564.61,0.00036164,5]
[319608439,1710885220106,-529.43,0.00036164,5]
[319608440,1710885220116,-618.58,0.00036164,5]
[319608441,1710885220125,-563.52,0.00036164,5]
[319608442,1710885220135,-2015.12,0.00036164,5]
[319608443,1710885220144,-631.9,0.00036164,5]
[319608444,1710885220154,-681.13,0.00036164,5]
[319608445,1710885220164,-1086.99,0.00036164,5]
[319608446,1710885220174,-652.31,0.00036164,5]
[319608447,1710885220185,-500.0,0.00036164,5]
[319608448,1710885220196,-1320.6,0.00036164,5]
[319608449,1710885220208,-1250.92,0.00036164,5]
[319608450,1710885220219,-1120.04,0.00036164,5]
[319608451,1710885220229,-519.72514726,0.00036164,5]
[319608452,1710885220240,-510.25,0.00036164,5]
[319608453,1710885220251,-921.3,0.00036164,5]
[319608454,1710885220261,-1041.72,0.00036164,5]
[319608455,1710885220272,-1043.25,0.00036164,5]
[319608456,1710885220282,-535.44,0.00036164,5]
[319608457,1710885220292,-151.9320316,0.00036164,5]
[319608458,1710885220303,-957.02,0.00036164,5]
[319608459,1710885220313,-549.6,0.00036164,5]
[319608460,1710885220323,-546.14,0.00036164,5]
[319608461,1710885220333,-983.01,0.00036164,5]
[319608462,1710885220344,-583.52,0.00036164,5]
[319608463,1710885220354,-502.25,0.00036164,5]
[319608464,1710885220364,-701.32,0.00036164,5]
[319608465,1710885220375,-845.97,0.00036164,5]
[319608466,1710885220385,-604.6,0.00036164,5]
[319608467,1710885220396,-626.44,0.00036164,5]
[319608468,1710885220407,-1296.65,0.00036164,5]
[319608469,1710885220419,-1134.53,0.00036164,5]
[319608470,1710885220430,-507.2,0.00036164,5]
[319608471,1710885220441,-783.57,0.00036164,5]
[319608472,1710885220451,-1022.89,0.00036164,5]
[319608473,1710885220462,-668.88,0.00036164,5]
[319608474,1710885220473,-597.77,0.00036164,5]
[319608475,1710885220483,-1317.95,0.00036164,5]
[319608476,1710885220496,-1578.12,0.00036164,5]
[319608477,1710885220507,-706.81,0.00036164,5]
[319608478,1710885220517,-820.72,0.00036164,5]
[319608479,1710885220527,-511.35,0.00036164,5]
[319608480,1710885220537,-1159.47,0.00036164,5]
[319608481,1710885220547,-752.64,0.00036164,5]
[319608482,1710885220558,-1433.6,0.00036164,5]
[319608483,1710885220569,-500.0,0.00036164,5]
[319608484,1710885220579,-1189.27,0.00036164,5]
[319608485,1710885220589,-500.0,0.00036164,5]
[319608486,1710885220599,-572.14,0.00036164,5]
[319608487,1710885220609,-1127.91,0.00036164,5]
[319608488,1710885220619,-729.46,0.00036164,5]
[319608489,1710885220629,-1199.62,0.00036164,5]
[319608490,1710885220638,-562.99,0.00036164,5]
[319608491,1710885220648,-786.3,0.00036164,5]
[319608492,1710885220659,-354.20668813,0.00036164,5]
[319608493,1710885220669,-1265.95,0.00036164,5]
[319608494,1710885220679,-580.29,0.00036164,5]
[319608495,1710885220689,-402.11621293,0.00036164,5]
[319608496,1710885220699,-718.68,0.00036164,5]
[319608497,1710885220710,-2136.15,0.00036164,5]
[319608498,1710885220720,-928.05,0.00036164,5]
[319608499,1710885220731,-397.93895799,0.00036164,5]
[319608500,1710885220741,-783.9,0.00036164,5]
[319608501,1710885220752,-1320.02,0.00036164,5]
[319608502,1710885220763,-1043.02,0.00036164,5]
[319608503,1710885220774,-802.08,0.00036164,5]
[319608504,1710885220786,-1028.49,0.00036164,5]
[319608505,1710885220796,-1179.51,0.00036164,5]
[319608506,1710885220807,-812.3,0.00036164,5]
[319608507,1710885220818,-1146.04,0.00036164,5]
[319608508,1710885220828,-1045.71,0.00036164,5]
[319608509,1710885220839,-530.67,0.00036164,5]
[319608510,1710885220850,-649.64,0.00036164,5]
[319608511,1710885220860,-152.31154546,0.00036164,5]
[319608512,1710885220871,-775.28,0.00036164,5]
[319608513,1710885220881,-897.58,0.00036164,5]
[319608514,1710885220892,-1675.73,0.00036164,5]
[319608515,1710885220903,-937.79,0.00036164,5]
[319608516,1710885220913,-284.95397244,0.00036164,5]
[319608517,1710885220924,-734.15,0.00036164,5]
[319608518,1710885220934,-1431.93,0.00036164,5]
[319608519,1710885221203,-530.51,0.00036164,5]
[319608520,1710885221218,-1508.78,0.00036164,5]
[319608521,1710885221228,-500.0,0.00036164,5]
[319608522,1710885221238,-3024.0,0.00036164,5]
[319608523,1710885221248,-571.47,0.00036164,5]
[319608524,1710885221258,-621.71,0.00036164,5]
[319608525,1710885221268,-762.86,0.00036164,5]
[319608526,1710885221277,-538.79,0.00036164,5]
[319608527,1710885221287,-985.89,0.00036164,5]
[319608528,1710885221297,-1947.91,0.00036164,5]
[319608529,1710885221307,-863.2,0.00036164,5]
[319608530,1710885221317,-747.16,0.00036164,5]
[319608531,1710885221326,-538.79,0.00036164,5]
[319608532,1710885221337,-421.32704198,0.00036164,5]
[319608533,1710885221346,-772.61,0.00036164,5]
[319608534,1710885221356,-1767.34,0.00036164,5]
[319608535,1710885221366,-313.61785749,0.00036164,5]
[319608536,1710885221376,-1603.73,0.00036164,5]
[319608537,1710885221386,-892.48,0.00036164,5]
[319608538,1710885221395,-654.11,0.00036164,5]
[319608539,1710885221405,-1478.75,0.00036164,5]
[319608540,1710885221415,-1208.68,0.00036164,5]
[319608541,1710885221424,-1477.07,0.00036164,5]
[319608542,1710885221434,-1428.4,0.00036164,5]
[319608543,1710885221444,-526.9,0.00036164,5]
[319608544,1710885221456,-2930.57,0.00036164,5]
[319608545,1710885221465,-1084.77,0.00036164,5]
[319608546,1710885221475,-948.83,0.00036164,5]
[319608547,1710885221487,-1970.31,0.00036164,5]
[319608548,1710885221497,-853.25,0.00036164,5]
[319608549,1710885221507,-748.56,0.00036164,5]
[319608550,1710885221517,-1046.29,0.00036164,5]
[319608551,1710885221527,-608.95,0.00036164,5]
[319608552,1710885221536,-636.98,0.00036164,5]
[319608553,1710885221546,-1279.27,0.00036164,5]
[319608554,1710885221556,-1827.01,0.00036164,5]
[319608555,1710885221565,-1006.11,0.00036164,5]
[319608556,1710885221577,-500.0,0.00036164,5]
[319608557,1710885221587,-1949.93,0.00036164,5]
[319608558,1710885221597,-1192.24,0.00036164,5]
[319608559,1710885221606,-2813.53,0.00036164,5]
[319608560,1710885221615,-845.98,0.00036164,5]
[319608561,1710885221625,-1011.35,0.00036164,5]
[319608562,1710885221634,-1701.68,0.00036164,5]
[319608563,1710885221644,-1413.56,0.00036164,5]
[319608564,1710885221653,-671.21,0.00036164,5]
[319608565,1710885221663,-856.2,0.00036164,5]
[319608566,1710885221673,-2782.61,0.00036164,5]
[319608567,1710885221683,-1896.31,0.00036164,5]
[319608568,1710885221692,-609.95,0.00036164,5]
[319608569,1710885221702,-1536.94,0.00036164,5]
[319608570,1710885221712,-2552.49,0.00036164,5]
[319608571,1710885221721,-2081.49,0.00036164,5]
[319608572,1710885221731,-1715.16,0.00036164,5]
[319608573,1710885221740,-1266.65,0.00036164,5]
[319608574,1710885221750,-1645.88,0.00036164,5]
[319608575,1710885221759,-500.0,0.00036164,5]
[319608576,1710885221769,-1784.06,0.00036164,5]
[319608577,1710885221779,-1425.44,0.00036164,5]
[319608578,1710885221788,-645.99,0.00036164,5]
[319608579,1710885221798,-856.99,0.00036164,5]
[319608580,1710885221807,-1899.37,0.00036164,5]
[319608581,1710885221817,-1509.6,0.00036164,5]
[319608582,1710885221827,-825.81,0.00036164,5]
[319608583,1710885221836,-1668.46,0.00036164,5]
[319608584,1710885221845,-1817.59,0.00036164,5]
[319608585,1710885221855,-612.56,0.00036164,5]
[319608586,1710885221864,-641.85,0.00036164,5]
[319608587,1710885221874,-3349.51,0.00036164,5]
[319608588,1710885221883,-1668.73,0.00036164,5]
[319608589,1710885221892,-2185.83,0.00036164,5]
[319608590,1710885221902,-1047.88,0.00036164,5]
[319608591,1710885221912,-709.8,0.00036164,5]
[319608592,1710885221921,-3189.82,0.00036164,5]
[319608593,1710885221931,-2131.99,0.00036164,5]
[319608594,1710885221940,-2548.99,0.00036164,5]
[319608595,1710885221949,-1717.39,0.00036164,5]
[319608596,1710885221960,-3499.12,0.00036164,5]
[319608597,1710885221969,-3366.11,0.00036164,5]
[319608598,1710885221979,-920.95,0.00036164,5]
[319608599,1710885221988,-1172.13,0.00036164,5]
[319608600,1710885221998,-762.14,0.00036164,5]
[319608601,1710885222008,-354.48705275,0.00036164,5]
[319608602,1710885222018,-651.81,0.00036164,5]
[319608603,1710885222028,-2755.73,0.00036164,5]
[319608604,1710885222038,-2171.26,0.00036164,5]
[319608605,1710885222049,-554.31,0.00036164,5]
[319608606,1710885222058,-913.38,0.00036164,5]
[319608607,1710885222067,-517.56,0.00036164,5]
[319608608,1710885222078,-1265.69,0.00036164,5]
[319608609,1710885222087,-576.05,0.00036164,5]
[319608610,1710885222096,-622.91,0.00036164,5]
[319608611,1710885222105,-2191.46,0.00036164,5]
[319608612,1710885222115,-1378.12,0.00036164,5]
[319608613,1710885222125,-832.3,0.00036164,5]
[319608614,1710885222135,-3259.21,0.00036164,5]
[319608615,1710885222144,-516.5,0.00036164,5]
[319608616,1710885222154,-621.23996866,0.00036164,5]
[319608617,1710885222164,-750.69,0.00036164,5]
[319608618,1710885222173,-6099.55,0.00036164,5]
[319608619,1710885222182,-705.53,0.00036164,5]
[319608620,1710885222192,-510.82,0.00036164,5]
[319608621,1710885222202,-583.59,0.00036164,5]
[319608622,1710885222211,-554.14,0.00036164,5]
[319608623,1710885222222,-1054.91,0.00036164,5]
[319608624,1710885222231,-1769.12,0.00036164,5]
[319608625,1710885222240,-758.11,0.00036164,5]
[319608626,1710885222250,-614.47,0.00036164,5]
[319608627,1710885222259,-565.83,0.00036164,5]
[319608628,1710885222269,-3031.48,0.00036164,5]
[319608629,1710885222279,-1813.36,0.00036164,5]
[319608630,1710885222288,-1793.05,0.00036164,5]
[319608631,1710885222298,-1781.25,0.00036164,5]
[319608632,1710885222308,-5948.25,0.00036164,5]
[319608633,1710885222318,-721.19,0.00036164,5]
[319608634,1710885222328,-2298.94,0.00036164,5]
[319608635,1710885222338,-1467.68,0.00036164,5]
[319608636,1710885222348,-2048.3,0.00036164,5]
[319608637,1710885222357,-740.6,0.00036164,5]
[319608638,1710885222367,-3725.64,0.00036164,5]
[319608639,1710885222376,-7446.28,0.00036164,5]
[319608640,1710885222386,-1639.61,0.00036164,5]
[319608641,1710885222396,-1176.01,0.00036164,5]
[319608642,1710885222414,-814.35,0.00036164,5]
[319608643,1710885222424,-1904.86,0.00036164,5]
[319608644,1710885222434,-531.89,0.00036164,5]
[319608645,1710885222444,-541.15,0.00036164,5]
[319608646,1710885222453,-505.23,0.00036164,5]
[319608647,1710885222463,-1726.69,0.00036164,5]
[319608648,1710885222473,-706.92,0.00036164,5]
[319608649,1710885222484,-1397.11,0.00036164,5]
[319608650,1710885222500,-644.74,0.00036164,5]
[319608651,1710885222510,-723.57,0.00036164,5]
[319608652,1710885222520,-2864.27,0.00036164,5]
[319608653,1710885222529,-2584.9,0.00036164,5]
[319608654,1710885222539,-6961.76,0.00036164,5]
[319608655,1710885222549,-915.89,0.00036164,5]
[319608656,1710885222558,-1043.19,0.00036164,5]
[319608657,1710885222568,-1045.63,0.00036164,5]
[319608658,1710885222579,-1312.85,0.00036164,5]
[319608659,1710885222590,-3736.86,0.00036164,5]
[319608660,1710885222600,-961.87,0.00036164,5]
[319608661,1710885222609,-1764.05,0.00036164,5]
[319608662,1710885222618,-838.02,0.00036164,5]
[319608663,1710885222628,-2820.33,0.00036164,5]
[319608664,1710885222637,-1302.7,0.00036164,5]
[319608665,1710885222648,-2171.52,0.00036164,5]
[319608666,1710885222657,-4792.93,0.00036164,5]
[319608667,1710885222667,-2181.61,0.00036164,5]
[319608668,1710885222677,-500.0,0.00036164,5]
[319608669,1710885222686,-1199.36,0.00036164,5]
[319608670,1710885222696,-501.95,0.00036164,5]
[319608671,1710885222706,-1621.75,0.00036164,5]
[319608672,1710885222714,-589.7,0.00036164,5]
[319608673,1710885222723,-855.86,0.00036164,5]
[319608674,1710885222733,-3227.64,0.00036164,5]
[319608675,1710885222742,-863.41,0.00036164,5]
[319608676,1710885222751,-2111.52,0.00036164,5]
[319608677,1710885222760,-2950.43,0.00036164,5]
[319608678,1710885222769,-5122.72,0.00036164,5]
[319608679,1710885222779,-824.14,0.00036164,5]
[319608680,1710885222788,-203.2362012,0.00036164,5]
[319608681,1710885222797,-10026.4,0.00036164,5]
[319608682,1710885222806,-565.71,0.00036164,5]
[319608683,1710885222815,-1033.05,0.00036164,5]
[319608684,1710885222825,-1760.23824095,0.00036164,5]
[319608685,1710885223579,-514.88175905,0.00036164,5]
[319608686,1710885223590,-260.5640985,0.00036164,5]
[319608687,1710885223603,-243.5059015,0.00036164,5]
[319608688,1710885223615,-255.47516542,0.00036164,5]
[319608689,1710885223627,-3244.72112913,0.00036164,5]
[319608690,1710885223643,-11044.71629278,0.00036164,5]
[319608691,1710885224078,-373.15533808,0.00030136,2]
[319608692,1710885224087,-500.0,0.00030136,2]
[319608693,1710885224097,-274.77951428,0.0003041,2]
[319608694,1710885224108,-299.07598825,0.0003041,2]
[319608695,1710885224117,-382.56993064,0.0003452,5]
[319608696,1710885224128,-833.43006936,0.0003452,5]
[319608697,1710885224138,-1216.0,0.00034794,5]
[319608698,1710885224147,-1216.0,0.00035068,5]
[319608699,1710885224156,-139.17222253,0.00036164,5]
[319608700,1710885224172,-1216.0,0.00035342,5]
[319608701,1710885224181,-4713.38777747,0.00036164,5]
[319608702,1710885224191,-2937.74,0.00036164,5]
[319608703,1710885224200,-1976.68,0.00036164,5]
[319608704,1710885224212,-777.71,0.00036164,5]
[319608705,1710885224221,-1133.54,0.00036164,5]
[319608706,1710885224231,-2119.46,0.00036164,5]
[319608707,1710885224241,-7711.4,0.00036164,5]
[319608708,1710885224250,-524.36,0.00036164,5]
[319608709,1710885224260,-7310.51,0.00036164,5]
[319608710,1710885224269,-11600.92938401,0.00036164,5]
[319608711,1710885224281,-500.0,0.00036164,5]
[319608712,1710885224318,-1216.0,0.00035616,5]
[319608713,1710885224327,-2248.02920357,0.00036164,5]
[319608714,1710885224339,-93.41141242,0.00036164,5]
[319608715,1710885224348,-182.69793278,0.00036164,5]
[319608716,1710885224412,-1958.71728,0.00036164,5]
[319608717,1710885224424,-2750.3468316,0.00036164,5]
[319608718,1710885224435,-303.67384753,0.00036164,5]
[319608719,1710885224447,-181.12410809,0.00036164,5]
[319608720,1710885224456,-582.24,0.00036164,5]
[319608721,1710885224466,-751.89,0.00036164,5]
[319608722,1710885224475,-542.91,0.00036164,5]
[319608723,1710885224485,-1949.45,0.00036164,5]
[319608724,1710885224498,-5623.75,0.00036164,5]
[319608725,1710885224508,-1033.59,0.00036164,2]
[319608726,1710885224517,-5877.04,0.00036164,5]
[319608727,1710885224527,-825.5,0.00036164,5]
[319608728,1710885224536,-521.04,0.00036164,5]
[319608729,1710885224545,-503.31,0.00036164,5]
[319608730,1710885224554,-636.0,0.00036164,5]
[319608731,1710885224563,-3068.4,0.00036164,5]
[319608732,1710885224574,-2857.27,0.00036164,5]
[319608733,1710885224583,-631.3,0.00036164,5]
[319608734,1710885224592,-2550.99,0.00036164,5]
[319608735,1710885224601,-814.62,0.00036164,5]
[319608736,1710885224610,-1149.73,0.00036164,5]
[319608737,1710885224619,-7487.75,0.00036164,5]
[319608738,1710885224628,-1638.18,0.00036164,5]
[319608739,1710885224637,-7814.4,0.00036164,5]
[319608740,1710885224646,-529.96,0.00036164,5]
[319608741,1710885224655,-594.04,0.00036164,5]
[319608742,1710885224664,-705.8,0.00036164,5]
[319608743,1710885224673,-3016.27,0.00036164,5]
[319608744,1710885224682,-33881.16529301,0.00036164,5]
[319608745,1710885224695,-4599.36470699,0.00036164,5]
[319608746,1710885224706,-968.19,0.00036164,5]
[319608747,1710885224715,-2988.01,0.00036164,5]
[319608748,1710885224724,-767.81,0.00036164,5]
[319608749,1710885224733,-3358.0,0.00036164,5]
[319608750,1710885224743,-2665.12031677,0.00036164,5]
[319608751,1710885227806,284584.31982691,0.00015,2]
[319608752,1710885227836,65000.0,0.00015,2]
[319608753,1710885227869,464860.0,0.00015,2]
[319608754,1710885227898,2661130.81109367,0.00015,2]
[319608755,1710885244055,-1053.4426883,0.00014984,2]
[319608756,1710885244076,-4549.0208912,0.00014985,2]
[319608757,1710885244097,-2337.71169681,0.00014998,2]
[319608758,1710885244117,-12735.53788776,0.00014999,2]
[319608759,1710885244138,-5351.89529938,0.00014999,2]
[319608760,1710885244160,-2635103.20263022,0.00015,2]
[319608820,1710886231880,-358.2264,0.00014998,2]
[319608821,1710886231938,-723.79534939,0.00014998,2]
[319608822,1710886231948,-1053.4426883,0.00014999,2]
[319608823,1710886231957,-17416.46196231,0.00015,2]
[319608867,1710886237851,-1362.99999999,0.00015,2]
[319608872,1710886237911,-1474.98341926,0.00015,2]
[319608879,1710886237979,-32035.49999999,0.00015,2]
[319608930,1710886239795,-32033.5,0.00015,2]
[319608931,1710886240029,-348.14766336,0.00015,2]
[319608932,1710886241276,-12153.74,0.00015,2]
[319608933,1710886241303,-2689.99555988,0.00015,2]
[319608934,1710886241373,-3584.22838272,0.00015,2]
[319608962,1710886243007,-4027.24631428,0.00015,2]
[319608963,1710886243019,-35136.64,0.00015,2]
[319608964,1710886243031,-583.23660328,0.00015,2]
[319608965,1710886243050,-4927.80548323,0.00015,2]
[319608966,1710886243098,-340.30074167,0.00015,2]
[319608967,1710886243110,-794.66045104,0.00015,2]
[319608968,1710886243161,-294.78324167,0.00015,2]
[319608969,1710886243185,-442.64201041,0.00015,2]
[319608970,1710886243279,-1821.65853077,0.00015,2]
[319608984,1710886245781,-4700.26320192,0.00014999,2]
[319608985,1710886245790,-154833.57839066,0.00015,2]
[319608986,1710886245802,-10023.77322503,0.00015,2]
[319608987,1710886245816,-619.89790438,0.00015,2]
[319608988,1710886245852,-1665.58496494,0.00015,2]
[319608989,1710886245960,-9535.41210954,0.00015,2]
[319608990,1710886245971,-16104.32916989,0.00015,2]
[319608991,1710886245982,-8843.92475302,0.00015,2]
[319608992,1710886245994,-6407.3,0.00015,2]
[319608993,1710886246080,-299.07844765,0.00015,2]
[319608994,1710886264530,347.92389785,0.00013498,2]
[319608995,1710886582278,468.89,0.0002201,30]
[319608996,1710886605117,234.45,0.00013901,2]
[319608997,1710886620340,234.44,0.00013901,2]
[319609025,1710886762995,155.44710078,0.00013894,2]
[319609080,1710886925461,33854.35,0.00013856,2]
[319609081,1710887004375,755.2,0.00013871,2]
[319609082,1710887111298,2164.097004,0.000139,2]
[319609083,1710887126691,484.98586537,0.000139,2]
[319609087,1710887192222,23880.0,0.00013606,2]
[319609135,1710887431997,-1082.02174939,0.00013903,2]
[319609136,1710887432007,-370.02,0.00013904,2]
[319609137,1710887432017,-150.0,0.00013911,2]
[319609138,1710887432026,-356.4,0.00014,2]
[319609139,1710887432035,-260.57,0.00014,2]
[319609140,1710887432045,-365.72,0.00014031,2]
[319609141,1710887432054,-155.44710073,0.00014038,2]
[319609142,1710887432065,-187.62683037,0.00014069,2]
[319609143,1710887432076,-178.09316963,0.00014069,2]
[319609144,1710887432086,-175.96071584,0.00014108,2]
[319609145,1710887432113,-189.75928416,0.00014108,2]
[319609146,1710887432123,-365.72,0.00014146,2]
[319609147,1710887432133,-155.44710073,0.00014181,2]
[319609148,1710887432442,-184.27,0.00014181,2]
[319609149,1710887432471,-365.72,0.00014185,2]
[319609151,1710887432481,-150.0,0.00014199,2]